bitfinex-derivatives/quotes_SOLF0:USTF0_20250111
["timestamp","ask_amount","ask_price","bid_price","bid_amount"]
[1736576718071,2.6733,187.08,187.05,4.37530392]
[1736576718262,2.6733,187.08,187.06,4.37530392]
[1736576718463,2.6733,187.08,187.03,2.674]
[1736576718663,2.6733,187.08,187.04,4.37510482]
[1736576718867,2.6733,187.08,187.05,4.37510482]
[1736576719170,2.6733,187.08,187.06,4.37510482]
[1736576719364,2.6733,187.08,187.03,2.674]
[1736576719564,2.6733,187.08,187.04,9.99288807]
[1736576719775,2.6733,187.08,187.05,4.37492339]
[1736576719974,2.6733,187.08,187.06,4.3753749]
[1736576720171,2.6733,187.08,187.03,2.674]
[1736576720372,2.6733,187.08,187.04,4.37557669]
[1736576720573,2.6733,187.08,187.05,4.37557669]
[1736576720873,7.14994112,187.09,187.06,4.37557669]
[1736576721076,2.6734,187.07,187.03,2.674]
[1736576721377,2.6734,187.07,187.04,9.99354196]
[1736576721576,2.6734,187.07,187.05,4.37518206]
[1736576721778,2.6734,187.07,187.04,5.6183599]
[1736576721976,2.6734,187.07,187.05,4.37590892]
[1736576722177,2.6734,187.07,187.06,4.37664573]
[1736576723774,2.6734,187.07,187.06,4.37712757]
[1736576726178,2.6734,187.07,187.06,4.3791572]
[1736576727079,7.14994112,187.07,187.03,29.49970124]
[1736576727282,9.82374112,187.05,187.04,4.38022213]
[1736576728373,9.82374112,187.05,187.04,4.38043208]
[1736576728978,9.82364112,187.05,187.04,4.38075023]
[1736576729381,7.14994112,187.05,187.04,4.38075023]
[1736576730073,2.6736,187.06,187.04,4.38075023]
[1736576730273,2.6736,187.06,187.05,4.38075023]
[1736576730779,2.6734,187.08,187.05,4.38075023]
[1736576731081,2.6734,187.08,187.06,4.38075023]
[1736576731273,2.6734,187.08,187.07,4.38489285]
[1736576731982,1.5225,187.13,187.07,4.38489285]
[1736576732175,8.72364112,187.14,187.08,4.38489285]
[1736576732381,8.72364112,187.14,187.09,4.38489285]
[1736576732581,8.72364112,187.14,187.1,4.38285434]
[1736576732881,2.6727,187.12,187.11,4.38285434]
[1736576733883,2.6727,187.12,187.08,7.37492531]
[1736576734076,2.6727,187.12,187.09,4.38274322]
[1736576734284,2.6727,187.12,187.1,4.38274322]
[1736576734585,2.673,187.1,187.06,29.49970124]
[1736576734786,9.82294112,187.1,187.07,4.38345334]
[1736576734980,9.82294112,187.1,187.08,4.38345334]
[1736576735181,9.82294112,187.1,187.09,4.38345334]
[1736576735776,9.82294112,187.1,187.05,29.49970124]
[1736576735975,2.6731,187.09,187.06,10.01588586]
[1736576736187,2.6731,187.09,187.07,4.38487446]
[1736576736487,2.6731,187.09,187.08,4.38487446]
[1736576736790,2.6731,187.09,187.08,4.38603011]
[1736576737286,2.6731,187.09,187.08,4.38619895]
[1736576739087,2.6731,187.09,187.08,4.38613127]
[1736576739989,7.14994112,187.1,187.04,29.49970124]
[1736576740188,7.14994112,187.1,187.05,4.38668677]
[1736576740488,7.14994112,187.08,187.06,4.38668677]
[1736576740706,7.14994112,187.08,187.04,29.49970124]
[1736576740929,7.14994112,187.05,187.04,29.49970124]
[1736576741113,7.14994112,187.05,187.04,33.88772544]
[1736576741410,9.82364112,187.05,187.04,4.3880242]
[1736576742990,2.6737,187.05,187.04,4.3880242]
[1736576745522,2.6737,187.05,187.04,4.38630297]
[1736576745907,2.6737,187.05,187.04,4.38673109]
[1736576747498,7.14994112,187.06,187.01,29.49970124]
[1736576747689,2.6739,187.04,187.02,4.38766865]
[1736576747890,2.6739,187.04,187.03,4.38766865]
[1736576748095,7.14994112,187.06,187.03,10.02198112]
[1736576748297,2.6737,187.05,187.04,4.38766865]
[1736576751797,7.14994112,187.06,187.04,4.38993732]
[1736576751999,2.6739,187.04,187.01,29.49970124]
[1736576752200,2.6739,187.04,187.02,4.39004945]
[1736576752403,2.6739,187.04,187.03,4.39004945]
[1736576753088,2.6739,187.04,187.03,10.02707708]
[1736576754599,2.6739,187.04,187.03,4.39004945]
[1736576755498,2.6739,187.04,187.03,10.02604303]
[1736576756597,2.6739,187.04,187.03,4.39004945]
[1736576759903,2.6743,187.01,187.0,7.37492531]
[1736576760108,2.6743,187.01,187.0,11.76407357]
[1736576761006,2.6743,187.01,187.0,11.76326103]
[1736576761208,2.6743,187.01,187.0,4.38833572]
[1736576762314,2.6743,187.01,186.95,39.32464236]
[1736576762315,7.14994112,187.02,186.95,39.32464236]
[1736576762517,2.6745,187.0,186.96,4.38742684]
[1736576762813,7.14994112,187.02,186.97,4.38742684]
[1736576763014,2.6743,187.01,186.98,4.38742684]
[1736576763207,7.14994112,187.02,186.99,4.38742684]
[1736576763409,7.14994112,187.02,187.0,4.38742684]
[1736576763714,7.14994112,187.02,187.01,4.38742684]
[1736576764111,9.82404112,187.02,187.01,4.38742684]
[1736576764311,7.14994112,187.02,186.97,7.37492531]
[1736576764512,7.14994112,187.0,186.98,4.38574466]
[1736576764714,9.82434112,187.0,186.99,4.38574466]
[1736576765714,2.6751,186.96,186.94,29.49970124]
[1736576766014,7.14994112,186.97,186.94,29.49970124]
[1736576766317,2.675,186.96,186.94,7.37492531]
[1736576767116,2.675,186.96,186.91,9.82554112]
[1736576767724,2.6753,186.94,186.92,5.62558419]
[1736576768217,2.6753,186.94,186.91,7.14994112]
[1736576770420,195.0,187.05,186.89,7.14994112]
[1736576770421,2.6754,186.93,186.89,7.14994112]
[1736576770619,2.6754,186.93,186.88,81.43454881]
[1736576770819,2.6754,186.93,186.88,59.30977288]
[1736576771520,2.6754,186.93,186.89,5.61809187]
[1736576771921,2.6756,186.92,186.89,5.61809187]
[1736576772219,2.6756,186.92,186.88,51.93484757]
[1736576774824,7.14994112,186.93,186.88,51.93484757]
[1736576775121,2.6758,186.91,186.87,7.14994112]
[1736576782221,9.82544112,186.93,186.87,7.14994112]
[1736576782426,2.6755,186.93,186.88,2.6761]
[1736576791439,9.82544112,186.93,186.88,2.6761]
[1736576792136,2.6756,186.92,186.88,2.6761]
[1736576793536,2.6756,186.92,186.88,10.05102531]
[1736576794833,2.6756,186.92,186.88,7.37492531]
[1736576795340,2.6756,186.92,186.89,5.37561198]
[1736576796031,2.6756,186.92,186.89,7.37492531]
[1736576797239,7.14994112,186.93,186.89,7.37492531]
[1736576797541,1.5931,187.02,186.88,29.49970124]
[1736576797542,7.14994112,186.91,186.88,29.49970124]
[1736576798144,2.6758,186.9,186.88,29.49970124]
[1736576798440,2.6758,186.9,186.87,29.49970124]
[1736576799141,2.6758,186.9,186.88,12.7573116]
[1736576800140,2.6758,186.9,186.89,5.38238629]
[1736576802239,2.6758,186.9,186.89,12.7573116]
[1736576804244,2.6758,186.9,186.87,7.37492531]
[1736576804943,2.6758,186.9,186.85,32.17620124]
[1736576806047,2.6758,186.9,186.86,5.62459745]
[1736576806253,2.6758,186.9,186.86,18.38735601]
[1736576806545,2.6758,186.9,186.86,12.76275856]
[1736576807145,2.6758,186.9,186.86,15.43915856]
[1736576807346,2.6758,186.9,186.87,5.62569381]
[1736576807852,2.6758,186.9,186.86,2.6764]
[1736576808346,2.6758,186.9,186.86,32.17610124]
[1736576809049,2.6758,186.9,186.87,5.62756108]
[1736576809349,2.6758,186.9,186.86,10.05132531]
[1736576809850,7.14994112,186.91,186.86,10.05132531]
[1736576810151,195.0,186.99,186.89,7.14994112]
[1736576810353,195.0,186.99,186.91,7.14994112]
[1736576810651,7.14994112,186.98,186.91,7.14994112]
[1736576811155,2.6749,186.97,186.92,2.6755]
[1736576811449,7.14994112,186.98,186.92,5.62903595]
[1736576811649,2.6752,186.95,186.92,5.62903595]
[1736576812350,2.6752,186.95,186.91,7.14994112]
[1736576813345,2.6752,186.95,186.9,2.6758]
[1736576814048,2.6752,186.95,186.91,5.63085353]
[1736576814553,2.6752,186.95,186.92,5.63085353]
[1736576815351,2.6752,186.95,186.9,9.82574112]
[1736576815656,2.6752,186.95,186.9,17.20066643]
[1736576816255,2.6752,186.95,186.91,5.63230878]
[1736576816756,2.6752,186.95,186.9,9.82574112]
[1736576817558,2.6752,186.95,186.91,5.63268953]
[1736576817954,2.6752,186.95,186.9,9.82574112]
[1736576819461,2.6752,186.95,186.91,5.63268292]
[1736576819960,2.6752,186.95,186.9,9.82574112]
[1736576821759,2.6752,186.95,186.91,5.63140059]
[1736576823662,2.675,186.96,186.91,8.30710059]
[1736576823960,7.14994112,186.98,186.92,7.14994112]
[1736576824263,7.14994112,186.98,186.94,2.6752]
[1736576826261,197.6746,186.99,186.94,2.6752]
[1736576826657,204.82454112,186.99,186.94,2.6752]
[1736576828463,9.82454112,186.99,186.94,2.6752]
[1736576829365,9.82454112,186.99,186.95,5.63140059]
[1736576830365,9.82424112,187.01,186.96,2.675]
[1736576835480,9.82424112,187.01,186.96,9.82494112]
[1736576835674,2.6741,187.03,186.98,2.6747]
[1736576836280,7.14994112,187.04,186.98,7.14994112]
[1736576836478,9.82384112,187.04,186.98,7.14994112]
[1736576838069,9.82384112,187.04,186.99,2.6745]
[1736576840572,7.14994112,187.02,186.96,7.14994112]
[1736576841270,9.82444112,187.0,186.95,32.17470124]
[1736576841472,7.14994112,187.0,186.95,29.49970124]
[1736576841871,7.14994112,187.0,186.94,7.14994112]
[1736576842571,2.6746,186.99,186.94,9.82504112]
[1736576844470,7.14994112,187.0,186.94,7.14994112]
[1736576844471,2.6747,186.98,186.94,7.14994112]
[1736576845473,9.82464112,186.98,186.93,2.6754]
[1736576847175,7.14994112,186.98,186.92,12.50994112]
[1736576847373,7.14994112,186.98,186.91,7.37492531]
[1736576847672,7.14994112,186.96,186.91,29.49970124]
[1736576848571,7.14994112,186.96,186.9,7.14994112]
[1736576849275,9.82494112,186.96,186.9,7.14994112]
[1736576849776,9.82494112,186.96,186.89,34.85970124]
[1736576850075,9.82494112,186.96,186.9,2.6757]
[1736576850276,9.82494112,186.96,186.91,7.14994112]
[1736576851077,9.82494112,186.96,186.91,9.82564112]
[1736576855280,2.675,186.96,186.91,9.82564112]
[1736576858379,2.6749,186.97,186.92,2.6755]
[1736576859780,9.82464112,186.98,186.93,2.6754]
[1736576860281,9.82464112,186.98,186.93,9.82534112]
[1736576861984,7.14994112,187.0,186.93,7.14994112]
[1736576862282,2.6746,186.99,186.94,8.29093051]
[1736576862980,2.6746,186.99,186.94,2.6752]
[1736576869696,2.6746,186.99,186.95,5.61725466]
[1736576870393,2.6746,186.99,186.94,2.6752]
[1736576873093,2.6741,187.02,186.97,7.14994112]
[1736576877100,2.6743,187.01,186.97,7.14994112]
[1736576880504,2.6736,187.06,187.01,2.6741]
[1736576880706,2.6736,187.06,187.01,9.82404112]
[1736576881295,7.14994112,187.06,186.95,29.49970124]
[1736576881607,7.14994112,187.04,186.99,29.49970124]
[1736576882403,7.14994112,187.04,186.98,14.52486643]
[1736576883201,2.6741,187.02,186.98,7.14994112]
[1736576886709,9.82364112,187.06,187.0,9.82434112]
[1736576886905,9.82364112,187.06,187.0,7.14994112]
[1736576888108,9.82364112,187.06,187.01,2.6743]
[1736576889806,7.14994112,187.06,186.99,7.37492531]
[1736576890106,2.6737,187.05,186.99,17.19926643]
[1736576890609,2.6737,187.05,186.99,9.82434112]
[1736576894309,2.6737,187.05,187.0,5.61169537]
[1736576895306,2.6737,187.05,186.99,17.19926643]
[1736576895803,2.6737,187.05,187.0,2.6744]
[1736576903415,2.6737,187.05,186.99,14.52486643]
[1736576903720,2.6737,187.05,187.01,2.6743]
[1736576904219,196.5607,187.1,187.01,2.6743]
[1736576904419,9.82354112,187.06,187.01,2.6743]
[1736576906623,2.6736,187.06,187.01,2.6743]
[1736576906816,9.82354112,187.06,187.01,2.6743]
[1736576908520,2.6736,187.06,187.01,2.6743]
[1736576908921,1.5607,187.1,187.01,7.14994112]
[1736576909224,7.14994112,187.09,187.03,7.14994112]
[1736576910017,1.5607,187.1,187.04,5.61288805]
[1736576910217,2.6732,187.09,187.04,8.28658805]
[1736576910814,2.6732,187.09,187.04,2.6737]
[1736576911618,8.71064112,187.1,187.03,14.52486643]
[1736576911819,2.6729,187.11,187.06,2.6734]
[1736576913527,5.08447057,187.13,187.07,7.14994112]
[1736576913727,5.08447057,187.13,187.09,7.14994112]
[1736576913924,1.5849,187.15,187.09,7.14994112]
[1736576914229,7.14994112,187.16,187.11,2.6728]
[1736576915332,9.82214112,187.16,187.11,2.6728]
[1736576921031,2.6723,187.15,187.11,2.6728]
[1736576921736,7.14994112,187.16,187.11,2.6728]
[1736576922033,1.6295,187.2,187.12,2.6726]
[1736576922232,49.53629706,187.18,187.12,2.6726]
[1736576923231,2.672,187.17,187.12,2.6726]
[1736576926132,2.6723,187.15,187.11,7.14994112]
[1736576927040,2.6723,187.15,187.1,2.6729]
[1736576928441,7.14994112,187.16,187.07,5.36]
[1736576928642,2.6726,187.13,187.08,2.6732]
[1736576929937,2.6731,187.1,187.05,2.6737]
[1736576930133,7.14994112,187.08,187.04,29.49970124]
[1736576930438,7.14994112,187.06,187.04,29.49970124]
[1736576930743,2.6737,187.05,187.0,29.49970124]
[1736576930947,7.14994112,187.04,187.0,29.49970124]
[1736576931247,2.674,187.03,187.0,29.49970124]
[1736576931647,7.14994112,187.02,187.0,29.49970124]
[1736576932244,7.14994112,187.02,186.96,17.19966643]
[1736576933046,2.674,187.03,186.98,7.14994112]
[1736576933742,7.14994112,187.04,186.98,7.14994112]
[1736576934348,7.14994112,187.04,186.98,9.82464112]
[1736576934748,9.82384112,187.04,186.98,9.82464112]
[1736576935047,9.82384112,187.04,186.98,7.14994112]
[1736576936847,9.82384112,187.04,186.98,9.82464112]
[1736576937046,7.14994112,187.04,186.98,7.14994112]
[1736576938249,7.14994112,187.04,186.99,2.6746]
[1736576939251,7.14994112,187.06,187.0,9.82434112]
[1736576939455,7.14994112,187.04,186.98,7.14994112]
[1736576941049,2.674,187.03,186.98,7.14994112]
[1736576941954,7.14994112,187.04,186.98,7.14994112]
[1736576942154,7.14994112,187.04,186.98,9.82464112]
[1736576945554,9.82384112,187.04,186.98,9.82464112]
[1736576950461,2.674,187.03,186.98,9.82464112]
[1736576950663,2.674,187.03,186.98,7.14994112]
[1736576954268,2.674,187.03,186.98,9.82464112]
[1736576959265,2.6734,187.07,187.01,2.6742]
[1736576959474,7.14994112,187.09,187.02,7.14994112]
[1736576960974,9.82324112,187.09,187.03,2.674]
[1736576962574,2.6733,187.08,187.03,2.674]
[1736576963174,16.07,187.33,187.04,5.4]
[1736576963377,94.89096651,187.42,187.04,5.4]
[1736576963378,7.14994112,187.26,187.18,7.14994112]
[1736576965177,2.671,187.25,187.18,9.82174112]
[1736576966574,2.6712,187.23,187.17,5.44]
[1736576967679,2.6712,187.23,187.17,8.112]
[1736576970179,7.14994112,187.24,187.17,5.44]
[1736576970380,9.82134112,187.22,187.17,5.44]
[1736576970585,7.14994112,187.2,187.14,7.14994112]
[1736576970881,7.14994112,187.2,187.14,12.56994112]
[1736576972082,9.82154112,187.2,187.14,12.56994112]
[1736576973886,9.82154112,187.2,187.14,15.24234112]
[1736576974687,9.82154112,187.2,187.14,9.82234112]
[1736576976180,9.82154112,187.2,187.13,12.56994112]
[1736576976893,9.82154112,187.2,187.15,7.14994112]
[1736576978086,3.1822,187.27,187.15,7.14994112]
[1736576978087,2.6714,187.22,187.15,7.14994112]
[1736576978292,2.6714,187.22,187.17,7.14994112]
[1736576981300,7.14994112,187.23,187.17,7.14994112]
[1736576981592,2.6714,187.21,187.17,7.14994112]
[1736576984495,2.6719,187.18,187.12,2.6726]
[1736576984797,7.14994112,187.17,187.11,7.14994112]
[1736576984994,7.14994112,187.17,187.11,12.54994112]
[1736576985690,7.14994112,187.19,187.13,7.14994112]
[1736576986293,2.6722,187.16,187.13,7.14994112]
[1736576987498,2.6722,187.16,187.11,9.82274112]
[1736576994595,2.6722,187.16,187.11,7.14994112]
[1736577000995,5.7631,187.18,187.11,7.14994112]
[1736577001202,1.6116,187.22,187.15,7.14994112]
[1736577001398,7.14994112,187.2,187.1,34.89970124]
[1736577001601,2.6723,187.15,187.1,37.57270124]
[1736577001801,2.6723,187.15,187.12,29.49970124]
[1736577002602,2.6723,187.15,187.11,36.64964236]
[1736577003507,2.6723,187.15,187.11,7.14994112]
[1736577004009,2.6723,187.15,187.1,10.04792531]
[1736577004209,7.14994112,187.16,187.1,7.37492531]
[1736577004413,2.6727,187.12,187.1,7.37492531]
[1736577005210,2.6727,187.12,187.08,64.41545839]
[1736577005713,2.6726,187.13,187.08,59.03545839]
[1736577006813,2.6726,187.13,187.08,61.70875839]
[1736577007213,2.6724,187.15,187.1,7.14994112]
[1736577007416,2.6724,187.15,187.1,9.82294112]
[1736577007708,7.14994112,187.16,187.1,7.14994112]
[1736577007912,2.6724,187.14,187.08,59.03545839]
[1736577008310,2.6724,187.14,187.09,2.6731]
[1736577009009,2.6726,187.13,187.08,91.20835963]
[1736577009209,2.6726,187.13,187.08,61.70865839]
[1736577010013,198.1161,187.21,187.08,59.03545839]
[1736577010215,2.6723,187.16,187.1,9.82284112]
[1736577012314,2.6723,187.15,187.1,9.82284112]
[1736577012516,2.6723,187.15,187.09,29.49970124]
[1736577012517,7.14994112,187.15,187.09,29.49970124]
[1736577013516,2.6726,187.13,187.08,61.70865839]
[1736577017422,7.14994112,187.11,187.06,29.49970124]
[1736577018619,7.14994112,187.11,187.04,14.52486643]
[1736577019121,2.6733,187.08,187.04,14.52486643]
[1736577019918,2.6733,187.08,187.04,7.14994112]
[1736577021710,7.14994112,187.09,187.02,29.49970124]
[1736577022020,9.82394112,187.03,187.02,7.37492531]
[1736577023216,9.82394112,187.03,186.96,32.17470124]
[1736577023217,2.6742,187.02,186.96,32.17470124]
[1736577023521,7.14994112,187.01,186.97,2.6748]
[1736577030426,7.14994112,187.01,186.95,8.055]
[1736577030627,7.14994112,187.01,186.95,15.20494112]
[1736577031823,7.14994112,187.01,186.95,12.52994112]
[1736577032030,7.14994112,187.01,186.96,2.675]
[1736577032928,7.14994112,187.03,187.0,2.6744]
[1736577033131,7.14994112,187.05,187.0,2.6744]
[1736577034223,9.82364112,187.05,187.0,2.6744]
[1736577034730,9.82364112,187.05,186.99,9.82444112]
[1736577034930,9.82364112,187.05,186.99,2.6745]
[1736577035335,2.6739,187.04,186.99,2.6745]
[1736577037230,7.14994112,187.05,187.0,2.6744]
[1736577038027,2.6738,187.04,186.98,2.6746]
[1736577038331,2.6738,187.04,186.97,7.14994112]
[1736577039228,2.6738,187.04,186.99,2.6745]
[1736577041333,7.14994112,187.03,186.97,7.14994112]
[1736577041531,7.14994112,187.01,186.95,5.38]
[1736577041932,7.14994112,187.01,186.95,8.055]
[1736577042132,7.14994112,187.01,186.95,5.38]
[1736577042536,7.14994112,187.01,186.96,2.6749]
[1736577043437,9.82424112,187.01,186.96,2.6749]
[1736577043834,7.14994112,187.01,186.94,12.50994112]
[1736577044031,7.14994112,187.03,186.98,7.14994112]
[1736577044631,7.14994112,187.03,186.99,2.6744]
[1736577045434,2.6735,187.07,187.01,2.6743]
[1736577045641,7.14994112,187.06,187.01,2.6743]
[1736577047935,9.82354112,187.06,187.01,2.6743]
[1736577054037,195.0,187.1,186.99,29.49970124]
[1736577054038,7.14994112,187.04,186.99,29.49970124]
[1736577054236,7.14994112,187.0,186.99,29.49970124]
[1736577054941,9.82434112,187.0,186.99,29.49970124]
[1736577055141,7.14994112,187.0,186.94,7.37492531]
[1736577055343,195.0,187.08,186.94,7.37492531]
[1736577055543,1.6143,187.07,186.95,7.14994112]
[1736577055748,7.14994112,187.03,186.97,7.14994112]
[1736577056241,2.6738,187.04,186.99,2.6745]
[1736577056439,7.14994112,187.05,186.93,29.49970124]
[1736577056639,7.14994112,187.05,186.99,7.14994112]
[1736577057033,7.14994112,187.05,187.0,2.6744]
[1736577057237,7.14994112,187.03,186.97,7.14994112]
[1736577057633,2.6744,187.0,186.99,7.37492531]
[1736577058448,2.6744,187.0,186.97,7.37492531]
[1736577058645,7.14994112,186.99,186.97,7.37492531]
[1736577059247,7.14994112,186.99,186.95,7.37492531]
[1736577060141,2.6747,186.98,186.95,7.37492531]
[1736577060945,7.14994112,187.01,186.95,14.52486643]
[1736577061358,7.14994112,187.01,186.95,7.14994112]
[1736577061549,9.82424112,187.01,186.96,2.6749]
[1736577061738,9.82424112,187.01,186.96,8.28349484]
[1736577062043,7.14994112,187.01,186.95,7.14994112]
[1736577062244,7.14994112,187.01,186.95,36.64964236]
[1736577062444,7.14994112,187.01,186.95,29.49970124]
[1736577063244,2.6744,187.0,186.95,32.17480124]
[1736577063449,2.6744,187.0,186.96,5.60898143]
[1736577064049,2.6744,187.0,186.95,2.6751]
[1736577064448,7.14994112,187.01,186.95,2.6751]
[1736577064647,9.82454112,186.99,186.95,2.6751]
[1736577064849,7.14994112,186.97,186.94,29.49970124]
[1736577065446,7.14994112,186.95,186.94,29.49970124]
[1736577065649,2.6753,186.94,186.93,29.49970124]
[1736577066847,2.6753,186.94,186.89,29.49970124]
[1736577067040,7.14994112,186.93,186.89,29.49970124]
[1736577067240,7.14994112,186.93,186.9,5.61491648]
[1736577067543,7.14994112,186.93,186.89,29.49970124]
[1736577067949,7.14994112,186.91,186.89,29.49970124]
[1736577068147,7.14994112,186.91,186.88,29.49970124]
[1736577068856,7.14994112,186.91,186.86,7.37492531]
[1736577069053,7.14994112,186.89,186.87,5.61127101]
[1736577069649,7.14994112,186.89,186.85,29.49970124]
[1736577069845,2.6762,186.88,186.85,7.37492531]
[1736577070047,7.14994112,186.87,186.85,7.37492531]
[1736577070447,2.6764,186.86,186.85,7.37492531]
[1736577070652,7.14994112,186.87,186.82,29.49970124]
[1736577070852,7.14994112,186.87,186.83,5.60944376]
[1736577071649,7.14994112,186.85,186.82,29.49970124]
[1736577071852,7.14994112,186.85,186.81,58.99940248]
[1736577071853,7.14994112,186.85,186.81,7.37492531]
[1736577072849,7.14994112,186.85,186.79,66.1493436]
[1736577073055,9.82654112,186.85,186.8,5.60258738]
[1736577073956,9.82654112,186.85,186.79,9.82724112]
[1736577077656,9.82654112,186.85,186.79,7.14994112]
[1736577077863,7.14994112,186.85,186.8,2.6773]
[1736577078562,7.14994112,186.85,186.79,7.14994112]
[1736577078757,2.6767,186.84,186.79,7.14994112]
[1736577078964,2.6767,186.84,186.78,8.0574]
[1736577079163,2.6767,186.84,186.79,7.14994112]
[1736577082066,7.14994112,186.85,186.77,7.14994112]
[1736577082265,9.82684112,186.83,186.77,15.18764112]
[1736577083765,9.82684112,186.83,186.77,9.82764112]
[1736577085360,9.82684112,186.83,186.78,2.6776]
[1736577087972,7.14994112,186.81,186.76,2.6777]
[1736577090275,7.14994112,186.81,186.76,2.6778]
[1736577090475,9.82714112,186.81,186.75,5.36]
[1736577090775,9.82714112,186.81,186.75,12.50994112]
[1736577091378,2.6773,186.8,186.75,15.18784112]
[1736577092778,7.14994112,186.81,186.75,15.18784112]
[1736577093079,9.82714112,186.81,186.75,15.18784112]
[1736577093378,9.82714112,186.81,186.75,8.0379]
[1736577094982,9.82714112,186.81,186.75,2.6779]
[1736577098177,9.82714112,186.81,186.75,10.05282531]
[1736577099785,9.82714112,186.81,186.76,5.36171679]
[1736577100185,2.6776,186.78,186.76,5.36171679]
[1736577100388,7.14994112,186.77,186.76,5.36171679]
[1736577100785,7.14994112,186.77,186.76,7.37492531]
[1736577101180,9.82764112,186.77,186.76,7.37492531]
[1736577101885,9.82764112,186.77,186.75,7.37492531]
[1736577102183,2.6779,186.76,186.75,7.37492531]
[1736577102583,4.8711,186.9,186.73,58.99940248]
[1736577102584,7.14994112,186.75,186.73,7.36871688]
[1736577103684,7.14994112,186.75,186.72,22.12477593]
[1736577104190,9.82794112,186.75,186.72,22.12477593]
[1736577105092,9.82794112,186.75,186.7,24.80347593]
[1736577105581,9.82794112,186.75,186.71,48.84037235]
[1736577106491,9.82794112,186.75,186.72,5.34311928]
[1736577107290,9.82794112,186.75,186.71,22.12477593]
[1736577107492,7.14994112,186.73,186.71,22.12477593]
[1736577108391,7.14994112,186.73,186.7,24.80347593]
[1736577109390,2.6784,186.72,186.71,5.34112555]
[1736577110188,2.678,186.75,186.71,5.34112555]
[1736577110387,7.14994112,186.74,186.71,5.34112555]
[1736577111292,2.6783,186.73,186.71,5.34112555]
[1736577111788,2.6783,186.73,186.7,22.12477593]
[1736577112790,2.6775,186.79,186.7,24.80347593]
[1736577112992,7.14994112,186.75,186.7,24.80347593]
[1736577113191,7.14994112,186.75,186.7,22.12477593]
[1736577113391,7.14994112,186.73,186.7,22.12477593]
[1736577113592,7.14994112,186.73,186.71,5.34043439]
[1736577114586,7.14994112,186.73,186.69,27.48477593]
[1736577115490,7.14994112,186.73,186.7,5.34162686]
[1736577116093,9.82824112,186.73,186.69,27.48477593]
[1736577117394,7.14994112,186.73,186.69,27.48477593]
[1736577117596,2.6785,186.72,186.69,27.48477593]
[1736577117890,2.6785,186.72,186.7,5.34342021]
[1736577118895,7.14994112,186.73,186.7,5.34342021]
[1736577119194,7.14994112,186.73,186.68,53.32166038]
[1736577123997,199.9131,186.82,186.68,57.7926015]
[1736577124199,7.14994112,186.78,186.72,7.14994112]
[1736577124699,7.14994112,186.8,186.74,7.14994112]
[1736577124893,7.14994112,186.8,186.74,12.50994112]
[1736577126200,7.14994112,186.8,186.76,2.6778]
[1736577130005,2.6767,186.85,186.78,2.6775]
[1736577130205,7.14994112,186.83,186.78,9.82744112]
[1736577134806,7.14994112,186.87,186.8,7.14994112]
[1736577135300,9.82634112,186.87,186.81,2.677]
[1736577139216,7.14994112,186.83,186.78,2.6775]
[1736577139506,7.14994112,186.81,186.77,43.41505308]
[1736577140112,2.6773,186.8,186.75,2.6779]
[1736577141512,7.14994112,186.81,186.75,2.6779]
[1736577141715,7.14994112,186.81,186.74,7.14994112]
[1736577142013,7.14994112,186.81,186.76,2.6778]
[1736577142213,7.14994112,186.83,186.76,7.14994112]
[1736577142412,7.14994112,186.85,186.79,2.6773]
[1736577143416,9.82654112,186.85,186.79,2.6773]
[1736577144318,7.14994112,186.85,186.79,2.6773]
[1736577144615,2.6767,186.84,186.79,2.6773]
[1736577150422,2.6763,186.87,186.81,2.677]
[1736577150721,7.14994112,186.86,186.81,2.677]
[1736577152410,9.82634112,186.86,186.81,2.677]
[1736577155424,7.14994112,186.86,186.82,2.677]
[1736577157425,13.00134112,186.88,186.82,2.677]
[1736577158921,10.32504112,186.88,186.8,29.27471705]
[1736577159225,7.14994112,186.88,186.83,2.6768]
[1736577160220,2.676,186.89,186.82,29.27471705]
[1736577160431,11.46064112,186.9,186.84,2.6766]
[1736577162329,2.6759,186.9,186.83,22.12477593]
[1736577162530,4.91822428,186.91,186.86,9.82634112]
[1736577163841,4.91822428,186.91,186.86,2.6764]
[1736577164538,7.59392428,186.91,186.86,2.6764]
[1736577165841,4.91822428,186.91,186.86,2.6764]
[1736577166038,8.66714112,186.95,186.88,7.14994112]
[1736577167145,11.34244112,186.95,186.9,2.6758]
[1736577167440,7.14994112,186.95,186.88,7.14994112]
[1736577167644,7.14994112,186.95,186.86,5.36]
[1736577167645,7.14994112,186.95,186.9,7.14994112]